{"text_format":"1","workbook":"xlsx","n_sheets":3,"sheets":["Pvmt-Main","Sheet Template","Help"],"not_rendered":{"charts":0,"images":3,"macros":1,"external_links":0,"defined_names":1,"comments":0,"pivot_tables":0},"unopened":[],"bounds":{"document_bytes":16777216,"sheet_cells":100000,"rows_first":2000,"rows_last":500,"rows_between":2000,"halvings":0,"cell_chars":16384,"cell_head_chars":4096},"cells_cut":0,"cells_raw":0,"read":"whole","date_system":"1900"}

{"sheet":"Pvmt-Main","index":0,"n_rows":36,"n_cols":28,"rows_kept":36,"cut":false,"hidden":false,"merged":[[28,2,28,3],[30,2,30,3],[22,2,22,3],[21,4,21,6],[21,1,21,3],[32,2,32,3],[34,1,34,2],[35,1,35,2],[1,2,1,8],[20,3,20,7],[4,3,4,6],[12,1,12,7],[5,3,5,6],[6,3,6,6],[7,3,7,6],[14,3,14,4],[15,3,15,4],[16,3,16,4],[21,7,21,9],[24,2,24,3],[26,2,26,3]]}
[null,null,null,null,null,null,null,null,null,null,null,null,null,null,null,null,null,null,null,null,null,null,null,null,null,null,"None",0]
[null,null,"NCDOT Roadway Design - Corridor Modeling Pavement Quantities",null,null,null,null,null,null,null,null,null,null,null,null,null,null,null,null,null,null,null,null,null,null,null,"S4.75A",1.8]
[null,null,null,null,null,null,null,null,null,null,null,null,null,null,null,null,null,null,null,null,null,null,null,null,null,null,"SF9.5A",1.98]
[null,null,null,null,null,null,null,null,null,null,null,null,null,null,null,null,null,null,null,null,null,null,null,null,null,null,"S9.5B",2.016]
[null,"TIP Number:",null,"B-4722B",null,null,null,null,null,null,null,null,null,null,null,null,null,null,null,null,null,null,null,null,null,null,"S9.5C",2.016]
[null,"Computed By:",null,"Oak Thammavong",null,null,null,null,null,null,null,null,null,null,null,null,null,null,null,null,null,null,null,null,null,null,"S9.5D",2.016]
[null,"Checked By:",null,"M. Mouse, PE",null,null,null,null,null,null,null,null,null,null,null,null,null,null,null,null,null,null,null,null,null,null,"S12.5C",2.016]
[null,"Date:",null,"2013-03-04",null,null,null,null,null,null,null,null,null,null,null,null,null,null,null,null,null,null,null,null,null,null,"Concrete, Asphalt [2243]",1.2689999999999999]
[null,null,null,null,null,null,null,null,null,null,null,null,null,null,null,null,null,null,null,null,null,null,null,null,null,null,"Gravel",0]
[]
[]
[null,"Corridor Modeling Component Base Quantities Log File (.HTML):",null,null,null,null,null,null,null,null,null,null,null,null,null,null,null,null,null,null,null,null,null,null,null,null,"None",0]
[null,null,null,null,null,null,null,null,null,null,null,null,null,null,null,null,null,null,null,null,null,null,null,null,null,null,"I19.0B",2.052]
[null,null,null,null,null,null,null,null,null,null,null,null,null,null,null,null,null,null,null,null,null,null,null,null,null,null,"I19.0C",2.052]
[null,"Alignment:",null,null,null,null,null,null,null,null,null,null,null,null,null,null,null,null,null,null,null,null,null,null,null,null,"I19.0D",2.052]
[null,"Begin Station:",null,null,null,null,null,null,null,null,null,null,null,null,null,null,null,null,null,null,null,null,null,null,null,null,"B25.0B",2.052]
[null,"End Station:",null,null,null,null,null,null,null,null,null,null,null,null,null,null,null,null,null,null,null,null,null,null,null,null,"B25.0C",2.052]
[null,null,null,null,null,null,null,null,null,null,null,null,null,null,null,null,null,null,null,null,null,null,null,null,null,null,"PADC, P-57",1.62]
[null,null,null,null,null,null,null,null,null,null,null,null,null,null,null,null,null,null,null,null,null,null,null,null,null,null,"PADC, P-78M",1.62]
[null,null,null,null,null,null,null,null,null,null,null,null,null,null,null,null,null,null,null,null,null,null,null,null,null,null,"ABC",2.0249999999999999]
[null,null,null,"Pavement Layer Definition"]
[null,"Pavement",null,null,"Conversion",null,null,"Volume (Cubic Yard)"]
[null,"Layer","Name",null,null,"Factor",null,"Full Lift","Wedge","Shoulder",null,null,null,null,null,null,null,null,null,null,null,null,null,null,null,null,"None",0]
[null,null,null,null,null,null,null,null,null,null,null,null,null,null,null,null,null,null,null,null,null,null,null,null,null,null,"B25.0B",2.052]
[null,"Course 1:","SF9.5A",null,null,{"$f":"VLOOKUP(C25,AA1:AB9,2,FALSE)","v":1.98},null,null,null,null,null,null,null,null,null,null,null,null,null,null,null,null,null,null,null,null,"B25.0C",2.052]
[null,null,null,null,null,null,null,null,null,null,null,null,null,null,null,null,null,null,null,null,null,null,null,null,null,null,"ABC",2.0249999999999999]
[null,"Course 2:","I19.0D",null,null,{"$f":"VLOOKUP(C27,AA12:AB20,2,FALSE)","v":2.052}]
[]
[null,"Course 3:","B25.0C",null,null,{"$f":"VLOOKUP(C29,AA12:AB20,2,FALSE)","v":2.052}]
[]
[null,"Course 4:","None",null,null,{"$f":"VLOOKUP(C31,AA12:AB20,2,FALSE)","v":0}]
[]
[null,"Course 5:","None",null,null,{"$f":"VLOOKUP(C33,AA12:AB20,2,FALSE)","v":0}]
[null,"Underneath:"]
[null,"C&G/SBG Course 1:",null,"ABC",null,{"$f":"VLOOKUP(D35,AA23:AB26,2,FALSE)","v":2.0249999999999999}]
[null,"C&G/SBG Course 2:",null,"None",null,{"$f":"VLOOKUP(D36,AA23:AB26,2,FALSE)","v":0}]

{"sheet":"Sheet Template","index":1,"n_rows":46,"n_cols":7,"rows_kept":46,"cut":false,"hidden":true,"merged":[[0,1,0,6],[5,1,5,6],[6,3,6,5],[4,1,4,6]]}
[null,"CORRIDOR MODELING - PAVEMENT QUANTITIES"]
[null,null,null,null,null,null,"SHEET  OF "]
[]
[]
[]
[]
[null,null,null,"Volume to Ton Conversion Factor:"]
[null,"LINE","BEG STA","END STA","TYPE","VOLUME (CY)","TONS"]
[null,null,null,null,null,null,{"$f":"F9*$G$7","v":0}]
[null,null,null,null,null,null,{"$f":"F10*$G$7","v":0}]
[null,null,null,null,null,null,{"$f":"F11*$G$7","v":0}]
[null,null,null,null,null,null,0]
[null,null,null,null,null,null,0]
[null,null,null,null,null,null,0]
[null,null,null,null,null,null,0]
[null,null,null,null,null,null,0]
[null,null,null,null,null,null,0]
[null,null,null,null,null,null,0]
[null,null,null,null,null,null,0]
[null,null,null,null,null,null,0]
[null,null,null,null,null,null,0]
[null,null,null,null,null,null,0]
[null,null,null,null,null,null,0]
[null,null,null,null,null,null,0]
[null,null,null,null,null,null,0]
[null,null,null,null,null,null,0]
[null,null,null,null,null,null,0]
[null,null,null,null,null,null,0]
[null,null,null,null,null,null,0]
[null,null,null,null,null,null,0]
[null,null,null,null,null,null,0]
[null,null,null,null,null,null,0]
[null,null,null,null,null,null,0]
[null,null,null,null,null,null,0]
[null,null,null,null,null,null,0]
[null,null,null,null,null,null,0]
[null,null,null,null,null,null,0]
[null,null,null,null,null,null,0]
[null,null,null,null,null,null,0]
[null,null,null,null,null,null,0]
[null,null,null,null,null,null,0]
[]
[null,null,null,null,null,"SHEET TOTAL:",{"$f":"SUM(G9:G41)","v":0}]
[null,null,null,null,null,"GRAND TOTAL:"]
[null,"Station range reports per corridor available on ProjectStore at:",null,null,null,"SAY:"]
[null,"[Tip No] R:\\Roadway\\CorridorModeling\\CMQR_*.HTML"]

{"sheet":"Help","index":2,"n_rows":0,"n_cols":0,"rows_kept":0,"cut":false,"hidden":false,"merged":[[0,0,0,10]]}